bitfinex/quotes_SOLUSD_20230103
["timestamp","ask_amount","ask_price","bid_price","bid_amount"]
[1672769331528,30.0,12.928,12.926,55.10605387]
[1672769333862,30.0,12.928,12.926,0.00605387]
[1672769334079,48.84656414,12.927,12.926,0.00605387]
[1672769343550,161.2997,12.928,12.926,0.00605387]
[1672769346475,161.2997,12.928,12.92,5.30605387]
[1672769346688,161.2997,12.928,12.92,6.8]
[1672769347848,58.02,12.938,12.92,33.97]
[1672769348065,58.02,12.938,12.921,20.0]
[1672769348066,160.8933,12.938,12.921,20.0]
[1672769348797,160.8933,12.938,12.921,67.3946]
[1672769349219,160.8933,12.938,12.93,6.8]
[1672769354169,0.06,12.94,12.931,20.0]
[1672769356786,0.06,12.94,12.932,71.88222848]
[1672769357007,0.06,12.94,12.934,30.0]
[1672769357223,0.06,12.94,12.935,20.0]
[1672769357427,0.06,12.94,12.935,111.01065317]
[1672769357622,0.06,12.94,12.933,47.3807]
[1672769359207,0.06,12.94,12.934,20.0]
[1672769360066,0.06,12.94,12.934,19.5]
[1672769362786,0.06,12.94,12.935,30.0]
[1672769362996,0.06,12.94,12.936,20.0]
[1672769363635,0.06,12.94,12.936,70.34089515]
[1672769364047,0.06,12.94,12.936,20.0]
[1672769364266,0.06,12.94,12.934,20.0]
[1672769364675,0.06,12.94,12.934,70.34089515]
[1672769365414,0.06,12.94,12.934,20.0]
[1672769367942,0.06,12.94,12.935,30.0]
[1672769368148,0.06,12.94,12.936,20.0]
[1672769368579,0.06,12.94,12.934,20.0]
[1672769368783,0.06,12.94,12.922,23.2352]
[1672769368996,104.52803271,12.939,12.923,49.3786]
[1672769369193,50.51564471,12.938,12.923,49.3786]
[1672769369404,50.51564471,12.938,12.92,6.79]
[1672769369624,50.90057171,12.939,12.92,6.79]
[1672769369838,50.90057171,12.939,12.92,33.93]
[1672769370155,155.6756,12.94,12.92,33.93]
[1672769370347,108.7983,12.94,12.93,33.93]
[1672769370559,108.7983,12.94,12.931,20.0]
[1672769370776,0.06,12.94,12.931,20.0]
[1672769373715,0.06,12.94,12.927,48.5968]
[1672769373924,58.02,12.939,12.928,20.0]
[1672769374140,30.0,12.938,12.928,20.0]
[1672769374451,58.03,12.937,12.928,20.0]
[1672769374777,88.02,12.938,12.927,48.5968]
[1672769374986,88.02,12.938,12.924,128.0152]
[1672769375201,135.5285,12.938,12.924,22.6428]
[1672769376026,77.5085,12.938,12.924,22.6428]
[1672769376779,30.0,12.936,12.924,22.6428]
[1672769377084,30.0,12.934,12.925,20.0]
[1672769377728,30.0,12.934,12.923,20.0]
[1672769378558,30.0,12.934,12.912,134.9649]
[1672769378752,45.65919816,12.931,12.913,20.0]
[1672769378957,45.65919816,12.929,12.914,45.9481]
[1672769379606,46.8239,12.93,12.914,45.9481]
[1672769379810,45.8017,12.929,12.914,45.9481]
[1672769380025,111.7137,12.933,12.92,6.73]
[1672769380856,111.7137,12.933,12.918,47.5666]
[1672769381082,111.7137,12.933,12.919,20.0]
[1672769383707,30.0,12.931,12.918,47.5666]
[1672769384023,58.06,12.93,12.918,47.5666]
[1672769384849,135.3948,12.931,12.918,47.5666]
[1672769385481,105.3948,12.931,12.918,47.5666]
[1672769385909,47.3348,12.931,12.918,47.5666]
[1672769392531,58.06,12.93,12.918,47.5666]
[1672769392972,104.213,12.93,12.918,47.5666]
[1672769393499,46.153,12.93,12.918,47.5666]
[1672769395898,30.0,12.928,12.914,23.444]
[1672769396117,218.82214834,12.927,12.915,20.0]
[1672769396336,30.0,12.926,12.915,20.0]
[1672769396656,109.99973023,12.925,12.915,20.0]
[1672769397051,51.91973023,12.925,12.915,20.0]
[1672769397579,51.91973023,12.925,12.914,20.0]
[1672769398949,58.08,12.926,12.914,20.0]
[1672769399254,44.14030074,12.925,12.914,20.0]
[1672769399465,74.14030074,12.925,12.914,20.0]
[1672769399910,44.57129018,12.923,12.914,20.0]
[1672769400644,58.08,12.925,12.914,20.0]
[1672769401469,42.34604031,12.924,12.914,20.0]
[1672769401897,58.08,12.925,12.914,20.0]
[1672769402097,43.52984201,12.924,12.914,20.0]
[1672769402544,58.08,12.925,12.914,20.0]
[1672769403158,43.7992527,12.924,12.914,20.0]
[1672769403468,43.7992527,12.924,12.908,19.97]
[1672769403469,57.25050957,12.922,12.908,19.97]
[1672769403679,30.0,12.92,12.908,19.97]
[1672769404726,58.1,12.922,12.908,19.97]
[1672769407670,136.2945,12.923,12.908,19.97]
[1672769408304,136.2945,12.923,12.91,6.73]
[1672769408948,42.65047132,12.922,12.91,6.73]
[1672769409140,30.0,12.921,12.917,0.0098795]
[1672769409996,45.80326134,12.919,12.917,0.0098795]
[1672769412082,163.3265,12.92,12.917,0.0098795]
[1672769412730,58.09,12.924,12.917,0.0098795]
[1672769412932,186.8921,12.925,12.917,0.0098795]
[1672769413345,30.0,12.924,12.917,0.0098795]
[1672769413555,58.09,12.923,12.917,0.0098795]
[1672769413764,30.0,12.922,12.917,0.0098795]
[1672769413987,30.0,12.92,12.917,0.0098795]
[1672769417550,30.0,12.918,12.917,0.0098795]
[1672769417978,88.11,12.918,12.917,0.0098795]
[1672769420396,30.0,12.918,12.917,0.0098795]
[1672769423550,30.0,12.918,12.909,117.62253891]
[1672769423768,88.11,12.918,12.909,117.62253891]
[1672769425653,194.4604,12.919,12.909,117.62253891]
[1672769425857,136.3504,12.919,12.909,117.62253891]
[1672769426289,30.0,12.918,12.909,117.62253891]
[1672769428596,38.35270879,12.918,12.909,117.62253891]
[1672769428808,30.0,12.918,12.909,117.62253891]
[1672769431635,136.3504,12.919,12.909,117.62253891]
[1672769432283,30.0,12.918,12.909,117.62253891]
[1672769437128,86.47270879,12.917,12.9,133.56805508]
[1672769437335,150.93477256,12.917,12.9,133.56805508]
[1672769437546,30.0,12.916,12.9,133.56805508]
[1672769437748,30.0,12.914,12.9,133.56805508]
[1672769437964,72.70815076,12.913,12.9,133.56805508]
[1672769438272,72.70815076,12.911,12.9,133.56805508]
[1672769438468,72.70815076,12.909,12.9,133.56805508]
[1672769444278,30.0,12.908,12.907,0.005839]
[1672769444605,112.05322464,12.908,12.907,0.005839]
[1672769446908,82.05322464,12.908,12.907,0.005839]
[1672769447125,82.05322464,12.909,12.907,0.005839]
[1672769447742,30.0,12.908,12.907,0.005839]
[1672769447952,112.05322464,12.908,12.907,0.005839]
[1672769449535,82.05322464,12.908,12.907,0.005839]
[1672769449730,82.05322464,12.909,12.907,0.005839]
[1672769456048,30.0,12.908,12.907,0.005839]
[1672769456270,112.05322464,12.908,12.907,0.005839]
[1672769456796,30.0,12.907,12.9,133.56805508]
[1672769457002,30.0,12.905,12.9,133.56805508]
[1672769457221,84.04065887,12.904,12.9,133.56805508]
[1672769457849,84.04065887,12.906,12.9,133.56805508]
[1672769461845,84.04065887,12.906,12.9,140.38805508]
[1672769462153,22.7885,12.907,12.9,140.38805508]
[1672769462367,44.48615653,12.906,12.9,140.38805508]
[1672769462575,22.7885,12.907,12.9,140.38805508]
[1672769465286,58.11,12.919,12.9,167.70805508]
[1672769465492,22.8139,12.918,12.901,53.84695211]
[1672769465710,22.8139,12.918,12.902,20.0]
[1672769466132,22.8139,12.918,12.903,111.12551659]
[1672769466343,22.8139,12.918,12.904,20.0]
[1672769466667,22.8139,12.918,12.904,44.6549]
[1672769467593,22.8139,12.918,12.904,155.78041659]
[1672769469088,22.8139,12.918,12.904,102.41051877]
[1672769469701,22.8139,12.918,12.904,155.78041659]
[1672769469906,22.8139,12.918,12.904,44.6549]
[1672769470978,52.8139,12.918,12.904,44.6549]
[1672769471186,52.8139,12.918,12.901,110.835]
[1672769471396,30.0,12.916,12.9,57.4329]
[1672769471602,66.0654,12.915,12.9,57.4329]
[1672769471825,30.0,12.914,12.9,57.4329]
[1672769472033,155.8462,12.913,12.9,57.4329]
[1672769472668,24.4958,12.912,12.9,57.4329]
[1672769473297,24.4958,12.911,12.9,57.4329]
[1672769474255,24.4958,12.911,12.9,30.0929]
[1672769475415,24.4958,12.911,12.9,57.3529]
[1672769477719,24.4958,12.911,12.9,30.1129]
[1672769480844,54.4958,12.911,12.9,30.1129]
[1672769481058,74.42760912,12.91,12.9,23.2929]
[1672769481495,58.15,12.909,12.891,15.69]
[1672769481818,58.15,12.909,12.89,6.82]
[1672769481819,103.78336366,12.908,12.89,6.82]
[1672769482009,30.0,12.906,12.891,16.07]
[1672769482223,73.78336366,12.905,12.892,46.9942]
[1672769482430,73.78336366,12.905,12.893,17.26]
[1672769482852,73.78336366,12.905,12.894,20.0]
[1672769483392,30.0,12.902,12.894,20.0]
[1672769483588,73.78336366,12.901,12.894,20.0]
[1672769484352,30.0,12.9,12.894,20.0]
[1672769484555,73.78336366,12.899,12.894,20.0]
[1672769484769,30.0,12.9,12.897,0.0098795]
[1672769485079,73.78336366,12.899,12.897,0.0098795]
[1672769485694,73.78336366,12.901,12.897,0.0098795]
[1672769485909,120.34376366,12.901,12.897,0.0098795]
[1672769486123,30.0,12.9,12.897,0.0098795]
[1672769486334,73.78336366,12.899,12.897,0.0098795]
[1672769490838,30.0,12.898,12.897,0.0098795]
[1672769491046,103.78336366,12.898,12.897,0.0098795]
[1672769491475,161.98336366,12.898,12.897,0.0098795]
[1672769492116,73.78336366,12.896,12.888,45.445839]
[1672769492315,73.78336366,12.894,12.888,45.445839]
[1672769492525,73.81910567,12.892,12.888,45.445839]
[1672769492951,73.81910567,12.89,12.888,45.445839]
[1672769493166,103.81910567,12.889,12.888,0.005839]
[1672769494953,30.0,12.888,12.878,2.4398795]
[1672769495170,106.79538466,12.886,12.878,2.4398795]
[1672769495375,76.79538466,12.886,12.878,2.4398795]
[1672769495588,76.79538466,12.887,12.878,2.4398795]
[1672769498407,76.79538466,12.888,12.878,2.4398795]
[1672769498623,23.4137,12.889,12.88,6.82]
[1672769499377,23.4137,12.889,12.88,34.16]
[1672769499687,23.4137,12.889,12.88,6.84]
[1672769499901,23.4137,12.889,12.88,6.85]
[1672769501988,23.4137,12.889,12.88,34.25]
[1672769502196,113.7113,12.893,12.88,34.29]
[1672769502519,58.21,12.896,12.88,77.078644]
[1672769502716,58.21,12.896,12.881,20.0]
[1672769502925,193.1874,12.897,12.881,20.0]
[1672769503136,193.1874,12.897,12.882,42.788644]
[1672769503368,134.9774,12.897,12.883,20.0]
[1672769505879,134.9774,12.897,12.881,20.0]
[1672769506499,134.9774,12.897,12.881,62.788644]
[1672769507043,58.21,12.896,12.881,62.788644]
[1672769507256,30.0,12.895,12.881,20.0]
[1672769507474,58.21,12.896,12.881,20.0]
[1672769516204,58.21,12.896,12.882,30.0]
[1672769516390,58.21,12.896,12.883,20.0]
[1672769517355,58.21,12.896,12.881,20.0]
[1672769518178,8.96236613,12.895,12.88,6.86]
[1672769518507,105.9506,12.894,12.88,6.86]
[1672769520602,46.7925,12.893,12.88,6.86]
[1672769520804,58.23,12.892,12.88,6.86]
[1672769521025,108.6047,12.891,12.88,6.86]
[1672769521333,58.24,12.89,12.88,6.86]
[1672769525025,58.24,12.89,12.88,5.36]
[1672769528285,58.24,12.89,12.876,47.0824]
[1672769528606,30.0,12.889,12.878,22.4398795]
[1672769528821,58.25,12.888,12.878,22.4398795]
[1672769529009,30.0,12.887,12.878,22.4398795]
[1672769529215,58.26,12.886,12.878,2.4398795]
[1672769531132,58.25,12.887,12.878,2.4398795]
[1672769534797,47.6331,12.888,12.88,6.85]
[1672769535013,246.6931,12.9,12.881,20.0]
[1672769535224,246.6931,12.9,12.881,65.6154]
[1672769535434,30.0,12.899,12.881,65.6154]
[1672769535647,30.0,12.897,12.881,65.6154]
[1672769535844,104.5492,12.896,12.881,65.6154]
[1672769536174,30.0,12.895,12.881,65.6154]
[1672769536375,58.22,12.894,12.881,65.6154]
[1672769536586,58.22,12.894,12.882,30.0]
[1672769536806,46.3392,12.896,12.882,30.0]
[1672769536807,46.3392,12.896,12.883,20.0]
[1672769537016,6.85,12.89,12.87,238.4868439]
[1672769537215,79.28426734,12.888,12.863,135.85175643]
[1672769537427,84.04065887,12.885,12.863,135.85175643]
[1672769537757,30.0,12.882,12.863,135.85175643]
[1672769537978,30.0,12.88,12.863,135.85175643]
[1672769538172,142.33065887,12.879,12.863,135.85175643]
[1672769538495,20.0,12.878,12.863,135.85175643]
[1672769538700,30.0,12.876,12.863,135.85175643]
[1672769538908,142.35065887,12.875,12.863,135.85175643]
[1672769539115,142.35065887,12.875,12.864,33.39443297]
[1672769539324,142.35065887,12.875,12.863,135.85175643]
[1672769539967,30.0,12.874,12.863,135.85175643]
[1672769540169,30.0,12.872,12.863,135.85175643]
[1672769540381,142.37065887,12.871,12.863,135.85175643]
[1672769540692,142.37065887,12.871,12.858,2.4398795]
[1672769541014,114.04065887,12.869,12.858,0.0098795]
[1672769541223,84.04065887,12.867,12.858,0.0098795]
[1672769541438,84.04065887,12.865,12.858,0.0098795]
[1672769541646,30.0,12.869,12.858,0.0098795]
[1672769541647,84.04065887,12.863,12.858,0.0098795]
[1672769541836,84.04065887,12.861,12.858,0.0098795]
[1672769542047,84.04065887,12.859,12.858,0.0098795]
[1672769542272,142.42065887,12.859,12.858,0.0098795]
[1672769542489,162.42065887,12.859,12.858,0.0098795]
[1672769543415,30.0,12.858,12.848,0.005839]
[1672769543631,30.0,12.855,12.848,0.005839]
[1672769543841,84.04065887,12.853,12.848,0.005839]
[1672769544045,84.04065887,12.85,12.848,0.005839]
[1672769544261,142.47065887,12.849,12.848,0.005839]
[1672769544902,84.04065887,12.853,12.848,0.005839]
[1672769545104,84.04065887,12.851,12.848,46.53152314]
[1672769545309,84.04065887,12.855,12.848,46.53152314]
[1672769545530,94.6868,12.858,12.85,6.87]
[1672769545531,84.04065887,12.857,12.85,6.87]
[1672769545738,23.6281,12.858,12.85,6.87]
[1672769545945,84.04065887,12.857,12.851,122.84764928]
[1672769546156,84.04065887,12.854,12.848,0.005839]
[1672769546368,142.44065887,12.854,12.848,0.005839]
[1672769546579,142.44065887,12.854,12.848,70.43447081]
[1672769546773,30.0,12.853,12.848,70.43447081]
[1672769546987,84.04065887,12.852,12.848,0.005839]
[1672769547429,84.04065887,12.85,12.848,0.005839]
[1672769547637,30.0,12.851,12.848,0.005839]
[1672769547851,84.04065887,12.85,12.848,0.005839]
[1672769548477,142.47065887,12.849,12.848,0.005839]
[1672769548689,162.47065887,12.849,12.848,0.005839]
[1672769549649,162.47065887,12.849,12.829,45.445839]
[1672769549650,30.0,12.848,12.829,45.445839]
[1672769549860,30.0,12.846,12.829,45.445839]
[1672769550069,162.48065887,12.845,12.829,45.445839]
[1672769550275,30.0,12.844,12.839,0.0098795]
[1672769550481,30.0,12.842,12.839,0.0098795]
[1672769550689,30.0,12.842,12.829,45.445839]
[1672769550690,142.50065887,12.841,12.829,45.445839]
[1672769551122,84.04065887,12.841,12.829,45.445839]
[1672769551331,24.2127,12.85,12.83,34.26]
[1672769551537,24.2127,12.85,12.831,30.0]
[1672769551958,24.2127,12.85,12.831,77.94617875]
[1672769552165,24.2127,12.85,12.84,6.87]
[1672769553111,24.6591,12.849,12.84,6.87]
[1672769553965,24.6591,12.849,12.83,74.79110686]
[1672769554180,24.6591,12.849,12.831,20.0]
[1672769554396,24.6591,12.849,12.832,30.0]
[1672769554705,24.6591,12.849,12.833,20.0]
[1672769554891,24.6591,12.849,12.84,6.87]
[1672769557017,24.6591,12.849,12.836,45.94110686]
[1672769557204,24.6591,12.849,12.837,20.0]
[1672769557430,24.6591,12.849,12.833,20.0]
[1672769557625,24.6591,12.849,12.835,11.08137784]
[1672769557954,24.6591,12.849,12.836,20.0]
[1672769558171,24.6591,12.849,12.833,65.94110686]
[1672769558361,24.6591,12.849,12.833,20.0]
[1672769558573,30.0,12.847,12.834,45.94110686]
[1672769558786,58.44,12.846,12.835,20.0]
[1672769559000,58.44,12.846,12.831,20.0]
[1672769559209,58.43,12.848,12.831,20.0]
[1672769559431,58.43,12.848,12.831,31.08137784]
[1672769560163,24.6591,12.849,12.831,31.08137784]
[1672769560359,24.6591,12.849,12.832,30.0]
[1672769560570,58.43,12.848,12.833,20.0]
[1672769560793,24.6591,12.849,12.833,31.08137784]
[1672769560986,58.43,12.848,12.833,31.08137784]
[1672769561321,24.6591,12.849,12.833,31.08137784]
[1672769561948,58.43,12.848,12.833,31.08137784]
[1672769563953,58.43,12.848,12.834,11.08137784]
[1672769564164,58.43,12.848,12.835,20.0]
[1672769565090,30.0,12.846,12.834,45.94110686]
[1672769565313,58.44,12.845,12.829,45.445839]
[1672769565504,30.0,12.844,12.83,11.08137784]
[1672769565720,58.45,12.843,12.829,45.445839]
[1672769565920,30.0,12.842,12.829,45.445839]
[1672769566137,30.0,12.84,12.829,45.445839]
[1672769566343,58.47,12.839,12.829,45.445839]
[1672769567722,58.46,12.841,12.829,45.445839]
[1672769568986,30.0,12.84,12.829,45.445839]
[1672769569181,58.47,12.839,12.829,45.445839]
[1672769569602,30.0,12.84,12.829,45.445839]
[1672769569812,58.47,12.839,12.829,45.445839]
[1672769570258,30.0,12.84,12.829,45.445839]
[1672769570869,58.47,12.839,12.829,45.445839]
[1672769571710,30.0,12.84,12.829,45.445839]
[1672769572035,58.47,12.839,12.829,45.445839]
[1672769572249,58.46,12.841,12.829,45.445839]
[1672769572436,49.95,12.85,12.83,8.62]
[1672769572650,49.95,12.85,12.831,20.0]
[1672769572651,114.8251,12.849,12.831,20.0]
[1672769573075,108.43,12.848,12.832,45.94110686]
[1672769573287,108.43,12.848,12.829,42.945839]
[1672769573701,108.43,12.848,12.829,54.02721684]
[1672769574130,178.2608,12.848,12.83,8.62]
[1672769574450,128.2608,12.848,12.831,11.08137784]
[1672769574776,69.8308,12.848,12.832,95.94110686]
[1672769575197,69.8308,12.848,12.834,30.0]
[1672769575392,69.8308,12.848,12.835,20.0]
[1672769575603,69.8308,12.848,12.835,94.53022293]
[1672769576023,69.8308,12.848,12.836,49.06110686]
[1672769576455,69.8308,12.848,12.836,11.08137784]
[1672769576664,69.8308,12.848,12.834,69.06110686]
[1672769576978,69.8308,12.848,12.837,94.53022293]
[1672769577187,69.8308,12.848,12.84,8.57]
[1672769577387,22.9007,12.848,12.84,8.57]
[1672769577597,22.9007,12.848,12.84,19.65137784]
[1672769577800,57.41255,12.849,12.841,30.0]
[1672769578004,49.95,12.85,12.842,20.0]
[1672769578219,49.95,12.85,12.842,80.1424847]
[1672769578429,49.95,12.85,12.843,60.1424847]
[1672769578647,15.3173,12.85,12.845,30.0]
[1672769579068,15.3173,12.85,12.846,114.53022293]
[1672769579605,15.3173,12.85,12.847,94.53022293]
[1672769580010,15.3173,12.85,12.848,45.46911607]
[1672769580424,15.3173,12.85,12.847,49.06110686]
[1672769580636,15.3173,12.85,12.846,20.0]
[1672769580846,15.3173,12.85,12.848,11.08137784]
[1672769581056,15.3173,12.85,12.846,20.0]
[1672769581289,15.3173,12.85,12.846,31.08137784]
[1672769581488,15.3173,12.85,12.847,45.46911607]
[1672769581693,15.3173,12.85,12.848,30.0]
[1672769581902,15.3173,12.85,12.846,69.06110686]
[1672769582113,15.3173,12.85,12.846,20.0]
[1672769582531,15.3173,12.85,12.842,20.0]
[1672769582738,15.3173,12.85,12.843,11.08137784]
[1672769582949,15.3173,12.85,12.844,20.0]
[1672769584106,15.3173,12.85,12.842,20.0]
[1672769584644,15.3173,12.85,12.84,8.56]
[1672769584857,15.3173,12.85,12.837,11.08137784]
[1672769585069,15.3173,12.85,12.836,24.3346]
[1672769585895,45.3173,12.85,12.836,24.3346]
[1672769586129,58.43,12.849,12.836,24.3346]
[1672769586436,30.0,12.848,12.836,24.3346]
[1672769586648,30.0,12.848,12.831,72.5432]
[1672769586649,58.44,12.847,12.831,72.5432]
[1672769586845,58.44,12.847,12.831,11.08137784]
[1672769587267,58.43,12.849,12.832,30.0]
[1672769587680,58.43,12.849,12.833,11.08137784]
[1672769588416,58.43,12.849,12.833,45.46911607]
[1672769588640,30.0,12.847,12.829,42.94583899]
[1672769588850,30.0,12.845,12.829,42.94583899]
[1672769589051,58.45,12.844,12.829,42.94583899]
[1672769589682,168.6278,12.844,12.829,42.94583899]
[1672769590014,30.0,12.843,12.829,42.94583899]
[1672769590232,58.46,12.842,12.829,42.94583899]
[1672769591279,30.0,12.841,12.829,42.94583899]
[1672769591492,30.0,12.839,12.829,42.94583899]
[1672769591699,58.48,12.838,12.829,42.94583899]
[1672769591911,58.47,12.84,12.829,42.94583899]
[1672769592942,58.45,12.843,12.829,42.94583899]
[1672769593158,30.0,12.842,12.829,42.94583899]
[1672769593384,58.46,12.841,12.829,42.94583899]
[1672769594212,15.3173,12.85,12.83,8.61]
[1672769594431,30.0,12.848,12.829,42.94583899]
[1672769594633,30.0,12.846,12.829,42.94583899]
[1672769594847,30.0,12.844,12.829,42.94583899]
[1672769595165,58.45,12.843,12.829,42.94583899]
[1672769595689,30.0,12.842,12.829,42.94583899]
[1672769595910,58.46,12.841,12.829,42.94583899]
[1672769596117,30.0,12.84,12.829,42.94583899]
[1672769596330,58.47,12.839,12.829,42.94583899]
[1672769597252,58.46,12.841,12.829,42.94583899]
[1672769597463,58.45,12.843,12.829,42.94583899]
[1672769599684,58.44,12.845,12.829,42.94583899]
[1672769599898,8.61,12.84,12.829,42.94583899]
[1672769600115,8.61,12.84,12.829,0.00583899]
[1672769600116,78.47,12.839,12.829,0.00583899]
[1672769600419,30.0,12.835,12.81,221.4701102]
[1672769600646,50.04257003,12.833,12.81,221.4701102]
[1672769600846,223.9078,12.832,12.81,221.4701102]
[1672769601160,30.0,12.829,12.819,0.0098795]
[1672769601353,30.0,12.827,12.819,0.0098795]
[1672769601563,139.42504843,12.826,12.819,0.0098795]
[1672769601769,30.0,12.825,12.819,0.0098795]
[1672769601983,30.0,12.823,12.81,221.4701102]
[1672769602199,30.0,12.821,12.81,221.4701102]
[1672769602405,139.45504843,12.82,12.81,221.4701102]
[1672769602717,30.0,12.819,12.81,221.4701102]
[1672769603046,30.0,12.817,12.81,221.4701102]
[1672769603254,78.58,12.816,12.81,221.4701102]
[1672769603468,30.0,12.815,12.81,221.4701102]
[1672769603784,42.38895839,12.815,12.81,221.4701102]
[1672769603996,30.0,12.825,12.81,221.4701102]
[1672769604423,58.53,12.826,12.81,221.4701102]
[1672769604733,58.52,12.828,12.81,262.91457101]
[1672769604948,30.0,12.827,12.81,262.91457101]
[1672769605138,58.53,12.826,12.81,262.91457101]
[1672769605678,43.9747748,12.824,12.81,262.91457101]
[1672769605895,30.0,12.823,12.81,262.91457101]
[1672769606296,30.0,12.821,12.81,221.4701102]
[1672769606507,58.56,12.82,12.81,221.4701102]
[1672769606712,30.0,12.821,12.81,221.4701102]
[1672769607128,20.0,12.82,12.81,221.4701102]
[1672769607343,30.0,12.818,12.81,221.4701102]
[1672769607570,78.57,12.817,12.81,221.4701102]
[1672769607767,75.28332294,12.816,12.81,221.4701102]
[1672769608091,75.43090239,12.814,12.81,221.4701102]
[1672769608496,75.43090239,12.814,12.8,1.29725671]
[1672769608497,63.13828023,12.811,12.8,1.29725671]
[1672769608826,121.73828023,12.811,12.8,1.29725671]
[1672769609050,30.0,12.81,12.8,1.29725671]
[1672769609239,63.13828023,12.809,12.8,1.29725671]
[1672769610194,30.0,12.808,12.806,27.3077825]
[1672769610401,121.75828023,12.807,12.806,0.0077825]
[1672769610610,141.75828023,12.807,12.806,0.0077825]
[1672769611560,63.13828023,12.807,12.806,0.0077825]
[1672769611773,58.59,12.814,12.806,0.0077825]
[1672769611980,58.57,12.817,12.806,45.73185439]
[1672769612198,42.90473812,12.814,12.806,0.0077825]
[1672769612408,42.90473812,12.814,12.807,45.72407189]
[1672769612717,9.38658391,12.819,12.807,53.87318274]
[1672769612919,9.38658391,12.819,12.806,0.0077825]
[1672769613125,30.0,12.817,12.806,0.0077825]
[1672769613336,58.58,12.816,12.806,0.0077825]
[1672769613547,79.25660768,12.815,12.806,0.0077825]
[1672769613871,58.59,12.814,12.806,0.0077825]
[1672769614301,30.0,12.813,12.806,0.0077825]
[1672769614701,30.0,12.811,12.806,0.0077825]
[1672769615766,58.59,12.812,12.806,0.0077825]
[1672769615978,58.58,12.816,12.806,0.0077825]
[1672769616391,58.57,12.817,12.806,0.0077825]
[1672769616596,58.57,12.817,12.806,93.34724187]
[1672769617018,58.54,12.824,12.806,93.34724187]
[1672769617220,50.0,12.817,12.806,93.34724187]
[1672769617453,108.57,12.817,12.806,140.48642461]
[1672769617667,58.54,12.824,12.806,140.48642461]
[1672769617862,58.53,12.826,12.807,30.0]
[1672769618072,58.53,12.826,12.806,140.48642461]
[1672769618283,58.53,12.826,12.808,99.34790355]
[1672769618708,30.0,12.825,12.809,99.34790355]
[1672769618907,58.54,12.824,12.809,99.34790355]
[1672769619123,50.0,12.817,12.806,0.0077825]
[1672769619347,58.58,12.816,12.806,0.0077825]
[1672769619571,30.0,12.815,12.806,0.0077825]
[1672769619765,58.59,12.814,12.806,0.0077825]
[1672769619974,30.0,12.813,12.806,0.0077825]
[1672769620194,30.0,12.811,12.806,0.0077825]
[1672769620403,58.6,12.81,12.806,0.0077825]
[1672769620725,20.0,12.809,12.806,0.0077825]
[1672769620934,30.0,12.807,12.806,0.0077825]
[1672769621143,108.62,12.807,12.806,0.0077825]
[1672769621768,118.00658391,12.807,12.806,0.0077825]
[1672769622823,118.00658391,12.807,12.797,351.2033294]
[1672769623036,118.00658391,12.807,12.79,45.445839]
[1672769623037,30.0,12.805,12.79,45.445839]
[1672769623233,8.62,12.8,12.79,45.445839]
[1672769623441,78.65,12.799,12.79,45.445839]
[1672769623660,48.54548757,12.798,12.79,45.445839]
[1672769623866,78.66,12.797,12.79,45.445839]
[1672769624072,78.54548757,12.796,12.79,44.945839]
[1672769624282,58.67,12.795,12.79,44.945839]
[1672769624489,68.05658391,12.795,12.79,0.005839]
[1672769624824,68.05658391,12.795,12.77,45.445839]